bitfinex-derivatives/quotes_SOLF0:USTF0_20251207
["timestamp","ask_amount","ask_price","bid_price","bid_amount"]
[1765128783778,3.22,134.64,134.56,72.4077]
[1765128783980,3.22,134.64,134.56,65.72]
[1765128784379,3.22,134.64,134.56,169.751]
[1765128784781,0.04929576,134.61,134.59,0.04988581]
[1765128785281,3.22,134.68,134.61,103.9935]
[1765128785478,113.00100993,134.75,134.64,103.9721]
[1765128785479,3.22,134.72,134.64,103.9721]
[1765128785682,3.22,134.74,134.64,65.7]
[1765128785875,3.22,134.74,134.64,169.672]
[1765128786075,3.22,134.72,134.64,65.7]
[1765128786283,3.22,134.68,134.64,65.7]
[1765128787184,3.22,134.68,134.62,6.6846]
[1765128787377,3.22,134.71,134.62,103.987]
[1765128787677,0.05134588,134.66,134.64,0.05078399]
[1765128787884,0.04945835,134.66,134.64,6.73438399]
[1765128788281,0.04945835,134.66,134.64,0.05078399]
[1765128788884,0.04945835,134.66,134.64,65.73078399]
[1765128789984,3.26945835,134.66,134.64,65.73078399]
[1765128790292,0.04945835,134.66,134.64,65.73078399]
[1765128790784,176.54714706,134.76,134.64,65.73078399]
[1765128790785,3.22,134.74,134.64,67.21078399]
[1765128790980,3.22,134.75,134.64,65.68]
[1765128791181,6.6802,134.72,134.64,65.68]
[1765128791379,3.22,134.69,134.62,65.68]
[1765128791785,3.27073452,134.67,134.64,0.05547516]
[1765128792290,0.05073452,134.67,134.64,0.05547516]
[1765128793089,3.27073452,134.67,134.64,0.05547516]
[1765128793794,9.95343452,134.67,134.64,0.05547516]
[1765128794090,0.05073452,134.67,134.64,0.05547516]
[1765128795593,3.27073452,134.67,134.64,0.05547516]
[1765128796095,3.22,134.65,134.64,0.05547516]
[1765128797490,3.19073452,134.67,134.64,0.05547516]
[1765128798084,3.14,134.66,134.55,104.0364]
[1765128798390,3.14,134.66,134.57,104.0243]
[1765128798989,6.6826,134.67,134.6,6.6856]
[1765128799186,0.05634683,134.65,134.62,0.04476718]
[1765128800686,3.19634683,134.65,134.62,0.04476718]
[1765128800998,0.05634683,134.65,134.62,0.04476718]
[1765128801186,3.19634683,134.65,134.62,0.04476718]
[1765128802687,3.19634683,134.65,134.58,65.66]
[1765128803489,9.87994683,134.65,134.58,72.3467]
[1765128803696,3.14,134.64,134.58,65.66]
[1765128804089,9.8241,134.64,134.58,65.66]
[1765128804690,3.14,134.64,134.58,72.3467]
[1765128804989,3.14,134.64,134.58,65.66]
[1765128806496,3.14,134.64,134.59,6.6862]
[1765128807483,0.05634683,134.65,134.6,6.6856]
[1765128807699,0.05634683,134.65,134.58,169.676]
[1765128808396,0.05634683,134.65,134.61,6.6852]
[1765128808797,0.05634683,134.65,134.59,6.6862]
[1765128810090,0.05634683,134.65,134.58,65.66]
[1765128811597,0.05634683,134.65,134.6,104.0029]
[1765128812102,0.05634683,134.65,134.63,6.684]
[1765128812392,0.05634683,134.65,134.63,72.344]
[1765128815294,3.14,134.72,134.67,6.6823]
[1765128815495,3.14,134.75,134.66,103.9557]
[1765128815692,8.84510834,134.74,134.67,65.66]
[1765128815893,3.14,134.74,134.67,65.66]
[1765128816190,3.14,134.73,134.67,65.66]
[1765128816400,3.18917583,134.71,134.69,0.04939934]
[1765128816708,3.18917583,134.71,134.63,65.64]
[1765128817318,3.18917583,134.71,134.63,169.6163]
[1765128817602,0.04917583,134.71,134.65,103.9622]
[1765128817791,0.04917583,134.71,134.67,103.9478]
[1765128818406,0.04917583,134.71,134.69,6.6812]
[1765128818803,178.60510993,134.8,134.68,65.64]
[1765128818804,16.77824706,134.81,134.73,6.679]
[1765128819012,5.70870488,134.8,134.73,103.8982]
[1765128819301,3.14,134.81,134.73,103.8982]
[1765128819505,3.14,134.81,134.75,6.678]
[1765128819898,0.04876068,134.79,134.77,0.05580244]
[1765128820500,3.18876068,134.79,134.77,0.05580244]
[1765128821107,3.14,134.77,134.68,6.6818]
[1765128821306,3.14,134.77,134.68,176.2402]
[1765128821608,3.14,134.77,134.68,72.3018]
[1765128822001,0.05648256,134.74,134.68,72.3018]
[1765128822207,0.05648256,134.74,134.7,103.9262]
[1765128822401,0.05648256,134.74,134.69,103.9338]
[1765128823107,0.05648256,134.74,134.7,6.6805]
[1765128823300,0.05648256,134.74,134.71,103.9175]
[1765128823501,0.05648256,134.74,134.7,103.9261]
[1765128823502,0.05648256,134.74,134.72,65.62]
[1765128826011,0.05648256,134.74,134.72,72.2994]
[1765128826214,3.14,134.81,134.72,169.5303]
[1765128826813,3.14,134.8,134.69,103.9306]
[1765128827005,3.14,134.8,134.7,65.6]
[1765128827207,3.14,134.78,134.7,65.6]
[1765128827405,103.8376,134.82,134.7,65.6]
[1765128827406,0.05534653,134.76,134.74,103.94494168]
[1765128827612,3.16,134.89,134.78,103.8621]
[1765128827813,3.16,134.89,134.79,65.6]
[1765128828319,3.16,134.89,134.8,6.6756]
[1765128828513,110.4479,134.9,134.79,169.455]
[1765128828514,3.20965917,134.86,134.83,0.04809029]
[1765128829601,3.16,134.85,134.83,0.04809029]
[1765128830208,0.04965917,134.86,134.83,0.04809029]
[1765128831016,3.20965917,134.86,134.83,0.04809029]
[1765128831408,0.04965917,134.86,134.83,0.04809029]
[1765128831806,0.04965917,134.86,134.84,169.4174]
[1765128832313,0.04965917,134.86,134.84,176.0911]
[1765128832510,0.04965917,134.86,134.84,177.5711]
[1765128832709,0.04965917,134.86,134.84,72.2737]
[1765128832911,0.04965917,134.86,134.83,0.04809029]
[1765128833111,0.04965917,134.86,134.84,65.58]
[1765128836318,3.32965917,134.86,134.83,0.04809029]
[1765128836816,0.04965917,134.86,134.83,0.04809029]
[1765128837015,3.32965917,134.86,134.83,0.04809029]
[1765128838914,0.04965917,134.86,134.83,0.04809029]
[1765128839114,0.04965917,134.86,134.83,6.72229029]
[1765128839719,0.04965917,134.86,134.84,110.4917]
[1765128840522,0.04965917,134.86,134.85,65.56]
[1765128840918,0.04965917,134.86,134.83,0.04809029]
[1765128841920,3.32965917,134.86,134.83,0.04809029]
[1765128842118,0.04965917,134.86,134.83,0.04809029]
[1765128844124,0.04965917,134.86,134.83,6.72219029]
[1765128844523,3.32965917,134.86,134.83,0.04809029]
[1765128845329,0.04965917,134.86,134.83,0.04809029]
[1765128846528,3.32965917,134.86,134.83,0.04809029]
[1765128846825,0.04965917,134.86,134.83,0.04809029]
[1765128847226,3.32965917,134.86,134.83,0.04809029]
[1765128847825,3.32965917,134.86,134.81,65.56]
[1765128848020,3.32965917,134.86,134.77,103.8677]
[1765128848323,3.28,134.86,134.77,169.4077]
[1765128848524,3.28,134.85,134.77,65.54]
[1765128848726,3.28,134.85,134.78,103.8605]
[1765128849033,0.0505192,134.82,134.8,6.7311289]
[1765128849215,0.05586272,134.82,134.81,65.54]
[1765128849730,0.05586272,134.82,134.81,72.2155]
[1765128850228,3.33586272,134.82,134.8,0.0504867]
[1765128851015,3.33586272,134.82,134.77,65.54]
[1765128851016,4.81586272,134.82,134.77,65.54]
[1765128851222,3.33586272,134.82,134.77,65.54]
[1765128851819,0.05586272,134.82,134.78,103.8644]
[1765128852231,0.05586272,134.82,134.79,6.6762]
[1765128852423,0.05586272,134.82,134.79,103.8554]
[1765128853024,3.33586272,134.82,134.79,65.54]
[1765128853328,0.05586272,134.82,134.79,65.54]
[1765128853529,0.05586272,134.82,134.8,6.6758]
[1765128855139,0.05586272,134.82,134.79,65.54]
[1765128855532,0.05586272,134.82,134.73,113.20243802]
[1765128855735,0.05586272,134.82,134.77,6.6772]
[1765128855940,3.33586272,134.82,134.77,6.6772]
[1765128856232,0.05586272,134.82,134.76,65.54]
[1765128856433,3.33586272,134.82,134.78,6.6768]
[1765128856629,3.33586272,134.82,134.73,113.20243802]
[1765128856834,3.33586272,134.82,134.76,65.54]
[1765128857026,0.04755923,134.8,134.76,72.2177]
[1765128857435,0.04755923,134.8,134.76,65.54]
[1765128857639,0.04755923,134.8,134.77,6.6772]
[1765128857834,0.04755923,134.8,134.76,65.54]
[1765128858435,0.04755923,134.8,134.7,9.30323802]
[1765128858436,3.11755923,134.8,134.7,9.30323802]
[1765128858729,3.11755923,134.8,134.73,65.54]
[1765128859135,3.11755923,134.8,134.74,6.6787]
[1765128859532,3.11755923,134.8,134.73,65.54]
[1765128860132,3.11755923,134.8,134.73,169.4399]
[1765128860741,3.11755923,134.8,134.75,6.6782]
[1765128861036,0.04755923,134.8,134.75,103.8858]
[1765128861232,0.04755923,134.8,134.76,103.8798]
[1765128861433,3.11755923,134.8,134.77,65.54]
[1765128861634,3.11755923,134.8,134.73,103.8999]
[1765128861635,3.11755923,134.8,134.74,169.434]
[1765128862139,0.04755923,134.8,134.78,103.8646]
[1765128862343,117.33994347,134.9,134.78,103.8646]
[1765128862344,3.07,134.87,134.81,103.8386]
[1765128862541,3.07,134.87,134.82,103.833]
[1765128863230,0.05027054,134.86,134.83,0.05624251]
[1765128863436,0.05027054,134.86,134.84,6.6736]
[1765128863738,0.05027054,134.86,134.84,110.4909]
[1765128864132,0.05027054,134.86,134.84,6.6736]
[1765128864329,0.05027054,134.86,134.84,72.2136]
[1765128864529,0.05027054,134.86,134.84,176.0299]
[1765128865541,3.84016264,134.93,134.89,103.7725]
[1765128865733,3.84016264,134.93,134.9,65.54]
[1765128865938,6.264e-05,134.93,134.91,207.5252]
[1765128866240,6.264e-05,134.93,134.91,214.1957]
[1765128866444,6.264e-05,134.93,134.91,214.24357108]
[1765128866645,3.07,135.0,134.93,103.7432]
[1765128866942,3.07,135.0,134.94,65.54]
[1765128867249,16.54624014,135.03,134.94,65.54]
[1765128867440,8.72161849,135.02,134.94,169.2782]
[1765128867640,0.05722327,134.99,134.97,0.05489808]
[1765128868446,3.07,135.08,134.98,169.23]
[1765128868637,5.64597652,135.07,134.99,103.6997]
[1765128868838,5.64597652,135.06,134.99,6.6662]
[1765128869039,3.07,135.08,135.01,103.6816]
[1765128869239,0.05079404,135.06,135.03,0.05179887]
[1765128869440,0.05314855,135.06,135.03,0.05246277]
[1765128870042,3.12314855,135.06,135.03,0.05246277]
[1765128870239,0.05314855,135.06,135.03,0.05246277]
[1765128870446,3.12314855,135.06,135.03,0.05246277]
[1765128870744,3.07,135.04,134.98,65.52]
[1765128871747,3.11673605,135.02,135.0,0.05656503]
[1765128871941,3.11673605,135.02,134.94,65.5]
[1765128871942,3.11815988,135.02,134.94,65.5]
[1765128872550,3.07,135.0,134.91,6.6705]
[1765128872747,3.07,135.03,134.91,110.4317]
[1765128872953,0.04884111,134.98,134.96,0.04914694]
[1765128873247,0.05191777,134.98,134.96,0.04914694]
[1765128874048,3.07,135.06,134.99,103.701]
[1765128874251,3.07,135.1,135.02,103.6769]
[1765128874448,5.58614966,135.12,135.02,103.6769]
[1765128874758,113.3263,135.13,135.01,109.65972757]
[1765128874942,0.05177283,135.08,135.06,0.05699891]
[1765128875142,0.0565403,135.08,135.06,0.05699891]
[1765128875345,3.1265403,135.08,135.06,0.05699891]
[1765128875848,0.0565403,135.08,135.06,0.05699891]
[1765128876948,3.1265403,135.08,135.06,0.05699891]
[1765128877342,0.0565403,135.08,135.06,0.05699891]
[1765128878151,9.7887403,135.08,135.06,0.05699891]
[1765128878448,9.7887403,135.08,134.99,65.48]
[1765128878449,3.07,135.07,134.99,65.48]
[1765128879046,3.07,135.06,134.99,65.48]
[1765128879448,0.04995802,135.04,135.01,0.04871696]
[1765128884450,106.78525802,135.04,134.94,72.1089]
[1765128884646,3.07,135.04,134.94,169.1795]
[1765128884843,106.7349,135.04,134.94,65.44]
[1765128885043,106.7349,135.04,134.92,5.97442757]
[1765128885044,6.666,135.01,134.92,5.97442757]
[1765128885249,106.773,134.99,134.89,5.97442757]
[1765128885656,0.04919941,134.95,134.93,0.05511655]
[1765128886053,3.07,135.03,134.93,1.53511655]
[1765128886253,3.07,135.07,134.97,103.7171]
[1765128887052,0.04953958,135.03,135.01,0.04777001]
[1765128888954,3.34,135.1,135.02,6.6648]
[1765128889860,0.05662301,135.07,135.05,0.0539879]
[1765128891362,3.39662301,135.07,135.05,0.0539879]
[1765128891960,0.05662301,135.07,135.05,0.0539879]
[1765128892954,3.39662301,135.07,135.05,0.0539879]
[1765128893951,3.34,135.05,134.98,65.44]
[1765128894352,3.34,135.08,134.98,169.147]
[1765128894555,3.34,135.08,134.99,103.7022]
[1765128894970,0.05355381,135.05,135.02,0.04975467]
[1765128896567,3.14355381,135.05,135.02,0.04975467]
[1765128897870,0.05355381,135.05,135.02,0.04975467]
[1765128899163,0.05355381,135.05,135.02,6.71485467]
[1765128900073,3.14355381,135.05,135.02,0.04975467]
[1765128902671,0.05355381,135.05,135.02,0.04975467]
[1765128903276,0.05355381,135.05,135.03,6.6644]
[1765128903575,110.38754014,135.16,135.04,175.05392757]
[1765128903576,3.09,135.16,135.04,175.05392757]
[1765128903876,3.09,135.16,135.07,103.6411]
[1765128904268,3.09,135.16,135.09,6.6613]
[1765128904471,0.05657985,135.14,135.11,0.04789009]
[1765128904871,0.05657985,135.14,135.11,6.70819009]
[1765128905177,0.05657985,135.14,135.11,103.65529009]
[1765128905469,0.05657985,135.14,135.13,6.6597]
[1765128905681,3.09,135.23,135.14,103.5839]
[1765128905974,3.09,135.23,135.17,103.5618]
[1765128906170,6.81114014,135.27,135.17,103.5618]
[1765128906171,3.09,135.27,135.17,103.5636]
[1765128906368,6.88373014,135.3,135.21,6.6557]
[1765128906566,0.05437807,135.27,135.24,0.05578096]
[1765128906779,3.14437807,135.27,135.24,0.05578096]
[1765128907073,3.09,135.25,135.14,103.5846]
[1765128907272,3.09,135.25,135.15,168.9801]
[1765128907465,3.09,135.25,135.16,103.5693]
[1765128907669,3.09,135.25,135.17,6.6573]
[1765128907870,3.09,135.25,135.15,65.4]
[1765128908178,0.05180915,135.21,135.19,0.05402629]
[1765128908671,3.14180915,135.21,135.19,0.05402629]
[1765128908868,3.14180915,135.21,135.13,65.4]
[1765128909066,3.09,135.2,135.1,109.58852757]
[1765128909463,5.60656784,135.19,135.08,169.0098]
[1765128909665,3.09,135.2,135.12,110.2624]
[1765128909868,0.0543497,135.17,135.15,0.05701416]
[1765128910068,0.0493265,135.17,135.15,0.04828237]
[1765128910272,5.6069687,135.23,135.19,6.6567]
[1765128910474,9.90114014,135.27,135.19,6.6567]
[1765128910673,3.09,135.25,135.15,103.5769]
[1765128910868,5.60690594,135.24,135.15,103.5769]
[1765128911076,5.60690594,135.23,135.15,103.5769]
[1765128911268,0.0528089,135.21,135.18,0.0528868]
[1765128913269,6.81114014,135.29,135.23,6.6543]
[1765128913470,9.90114014,135.33,135.22,103.5205]
[1765128913683,3.09,135.28,135.2,109.51522757]
[1765128913881,3.09,135.28,135.2,6.6557]
[1765128914178,3.09,135.32,135.21,103.5316]
[1765128914378,3.09,135.32,135.22,110.1784]
[1765128914685,3.13824393,135.27,135.24,0.04861175]
[1765128914977,0.04824393,135.27,135.24,0.04861175]
[1765128915184,15.87556771,135.35,135.26,103.4926]
[1765128915377,5.50352543,135.34,135.26,110.1457]
[1765128915679,6.88373014,135.3,135.24,0.04861175]
[1765128915871,3.79373014,135.3,135.25,103.5001]
[1765128916070,3.09,135.29,135.24,0.04861175]
[1765128916279,3.14336028,135.28,135.24,0.04861175]
[1765128916583,3.14336028,135.28,135.2,110.1943]
[1765128916773,3.79373014,135.3,135.27,103.4844]
[1765128916976,3.014e-05,135.3,135.28,103.4807]
[1765128917278,3.014e-05,135.3,135.22,310.5597]
[1765128917279,3.09003014,135.3,135.22,103.5226]
[1765128917577,0.05063782,135.27,135.25,0.04976533]
[1765128918277,0.05063782,135.27,135.25,103.54726533]
[1765128918484,0.05063782,135.27,135.25,207.05016533]
[1765128918874,0.05063782,135.27,135.25,213.70346533]
[1765128919278,1.48007699,135.26,135.22,103.5226]
[1765128919474,0.05063782,135.27,135.24,103.5093]
[1765128919673,0.05063782,135.27,135.25,103.5026]
[1765128919873,0.00063782,135.27,135.25,207.0052]
[1765128920084,3.014e-05,135.3,135.25,207.0052]
[1765128920085,3.014e-05,135.3,135.28,6.6521]
[1765128920283,3.014e-05,135.3,135.29,65.56]
[1765128920472,3.014e-05,135.3,135.29,67.04]
[1765128921884,3.014e-05,135.3,135.29,65.56]
[1765128922087,3.014e-05,135.3,135.28,0.04853626]
[1765128923176,3.35,135.29,135.21,65.56]
[1765128923986,3.35,135.27,135.21,65.56]
[1765128924190,0.04878793,135.25,135.23,0.05343508]
[1765128924787,3.014e-05,135.3,135.24,103.5099]
[1765128924983,3.014e-05,135.3,135.25,65.58]
[1765128925186,3.014e-05,135.3,135.26,6.6531]
[1765128925683,3.014e-05,135.3,135.25,65.58]
[1765128925884,3.35,135.28,135.26,0.05379271]
[1765128926476,3.35,135.27,135.2,65.58]
[1765128927383,0.04724539,135.25,135.22,0.05044576]
[1765128927690,3.39724539,135.25,135.22,0.05044576]
[1765128928481,0.04724539,135.25,135.22,0.05044576]
[1765128928678,3.39724539,135.25,135.22,0.05044576]
[1765128928884,3.39724539,135.25,135.2,65.58]
[1765128929588,3.39724539,135.25,135.14,103.5832]
[1765128929784,3.39724539,135.25,135.16,72.2181]
[1765128929785,3.35,135.25,135.16,72.2181]
[1765128929983,0.05444697,135.22,135.19,0.04896375]
[1765128930184,3.40444697,135.22,135.19,0.04896375]
[1765128930380,0.05444697,135.22,135.19,0.04896375]
[1765128931186,3.35003014,135.3,135.2,65.54]
[1765128932194,0.0522313,135.26,135.24,0.0538766]
[1765128932585,0.0522313,135.26,135.24,65.5938766]
[1765128932804,0.0522313,135.26,135.24,170.5830766]
[1765128933592,0.0522313,135.26,135.24,177.2369766]
[1765128934399,3.014e-05,135.3,135.27,6.6527]
[1765128934604,3.014e-05,135.3,135.28,65.52]
[1765128935295,3.014e-05,135.3,135.22,103.5233]
[1765128935502,0.04888112,135.27,135.25,65.59375519]
[1765128937794,0.04888112,135.27,135.21,103.5315]
[1765128937795,3.35,135.26,135.18,6.657]
[1765128937991,3.35,135.26,135.18,65.46]
[1765128938505,3.35,135.26,135.18,169.0168]
[1765128938800,3.40363751,135.23,135.21,0.04891098]
[1765128938997,3.40443097,135.23,135.21,0.05472441]
[1765128939587,0.05443097,135.23,135.21,0.05472441]
[1765128940697,0.05443097,135.23,135.21,110.24382441]
[1765128941001,3.35,135.27,135.22,6.65192948]
[1765128941200,3.35,135.27,135.23,6.65192948]
[1765128941394,3.35,135.27,135.24,6.65192948]
[1765128941595,3.014e-05,135.3,135.25,110.15092948]
[1765128941789,3.014e-05,135.3,135.26,6.65192948]
[1765128941995,3.39732483,135.29,135.27,6.7069753]
[1765128942195,3.39732483,135.29,135.28,6.65192948]
[1765128942704,0.04732483,135.29,135.28,6.65192948]
[1765128943508,3.39732483,135.29,135.28,6.65192948]
[1765128943696,0.04732483,135.29,135.28,6.65192948]
[1765128944492,3.39732483,135.29,135.28,6.65192948]
[1765128944698,0.04732483,135.29,135.28,6.65192948]
[1765128945291,3.014e-05,135.3,135.28,6.65192948]
[1765128945498,3.35,135.37,135.31,103.4555]
[1765128945698,3.35,135.37,135.32,6.65192948]
[1765128946006,3.35,135.37,135.33,6.65192948]
[1765128946204,3.35,135.37,135.29,103.4689]
[1765128946205,3.35,135.37,135.34,6.65192948]
[1765128946405,3.35,135.37,135.35,3.28192948]
[1765128946608,3.40637337,135.37,135.34,0.05337025]
[1765128946905,3.39678818,135.37,135.34,0.05491407]
[1765128947893,0.04678818,135.37,135.34,0.05491407]
[1765128948094,0.04678818,135.37,135.34,103.48941407]
[1765128948298,0.04678818,135.37,135.34,0.05491407]
[1765128948700,0.04678818,135.37,135.35,6.6485]
[1765128948893,0.04678818,135.37,135.34,0.05491407]
[1765128949799,3.23,135.45,135.34,103.48941407]
[1765128949996,8.74232133,135.44,135.36,103.4161]
[1765128950304,3.23,135.47,135.38,103.4038]
[1765128950495,5.50940996,135.46,135.38,103.4038]
[1765128950693,0.0536605,135.43,135.41,0.05325754]
[1765128951095,5.51109506,135.42,135.33,65.48]
[1765128951302,3.23,135.4,135.33,65.48]
[1765128951600,3.23,135.38,135.33,65.48]
[1765128952303,3.23,135.36,135.34,0.04815019]
[1765128952499,0.05252424,135.37,135.34,0.04815019]
[1765128952708,3.28252424,135.37,135.34,0.04815019]
[1765128953202,0.05252424,135.37,135.34,0.04815019]
[1765128953599,0.05252424,135.37,135.35,65.48]
[1765128953808,0.05252424,135.37,135.35,272.329]
[1765128954008,3.23,135.45,135.36,103.4193]
[1765128954413,3.23,135.45,135.36,110.0672]
[1765128954609,6.81114014,135.51,135.41,103.3773]
[1765128954812,5.50395146,135.5,135.42,65.48]
[1765128955005,0.05555107,135.47,135.45,0.05408704]
[1765128955205,3.23,135.5,135.45,0.05408704]
[1765128955519,0.05563427,135.47,135.45,0.05408704]
[1765128955818,106.62273427,135.47,135.39,65.5]
[1765128956113,3.23,135.47,135.39,65.5]
[1765128956314,9.8731,135.47,135.39,65.5]
[1765128956524,3.16,135.43,135.33,6.6494]
[1765128956814,3.16,135.43,135.35,65.48]
[1765128957025,3.16,135.43,135.37,0.05265211]
[1765128957026,0.05165061,135.39,135.37,0.05265211]
[1765128957326,106.4986,135.47,135.37,0.05265211]
[1765128957523,3.16,135.47,135.35,168.9036]
[1765128957924,113.1388,135.47,135.35,175.5524]
[1765128958218,0.05186343,135.42,135.4,0.0549516]
[1765128958419,0.05423204,135.42,135.4,0.0549516]
[1765128958721,0.05423204,135.42,135.4,65.5349516]
[1765128959218,0.05423204,135.42,135.4,175.5694516]
[1765128959717,0.05423204,135.42,135.4,72.1813516]
[1765128960314,3.21423204,135.42,135.4,0.0549516]
[1765128960517,0.05423204,135.42,135.4,103.4412516]
[1765128960710,0.05423204,135.42,135.4,0.0549516]
[1765128961022,3.21423204,135.42,135.38,65.48]
[1765128961212,3.21423204,135.42,135.34,65.5]
[1765128961523,110.13494014,135.49,135.34,65.5]
[1765128961524,3.16,135.52,135.39,103.3913]
[1765128961823,3.16,135.52,135.4,168.9054]
[1765128962015,3.16,135.5,135.4,65.52]
[1765128962219,0.04835576,135.46,135.44,0.05524991]
[1765128962523,3.20835576,135.46,135.44,0.05524991]
[1765128962721,0.04835576,135.46,135.44,0.05524991]
[1765128963217,3.20835576,135.46,135.44,0.05524991]
[1765128964211,4.68835576,135.46,135.44,0.05524991]
[1765128964417,3.16,135.45,135.44,0.05524991]
[1765128964618,3.16,135.45,135.4,65.54]
[1765128964810,3.16,135.45,135.36,6.6483]
[1765128965213,3.16,135.45,135.35,65.52]
[1765128965415,3.16,135.45,135.38,6.6469]
[1765128965610,3.16,135.45,135.35,65.52]
[1765128965819,3.16,135.42,135.4,0.05679031]
[1765128966218,4.64,135.42,135.32,103.4485]
[1765128966418,3.16,135.42,135.32,168.9885]
[1765128966619,3.16,135.41,135.32,65.54]
[1765128966812,3.16,135.4,135.32,65.54]
[1765128967009,3.16,135.39,135.28,103.4762]
[1765128967220,3.16,135.39,135.32,0.05122729]
[1765128967221,0.05278735,135.35,135.32,0.05122729]
[1765128967621,0.05278735,135.35,135.33,103.4424]
[1765128967816,3.16,135.34,135.32,0.05122729]
[1765128968021,3.16,135.34,135.12,22.13203965]
[1765128968219,3.16,135.34,135.1,17.2806021]
[1765128968220,3.16,135.27,135.14,103.5848]
[1765128968717,3.16,135.27,135.15,103.5773]
[1765128968919,106.6229,135.31,135.17,103.5606]
[1765128969214,0.05170925,135.22,135.2,0.0562711]
[1765128969417,3.16,135.3,135.19,103.5419]
[1765128969618,3.16,135.3,135.18,169.3143]
[1765128969815,3.16,135.3,135.18,65.76]
[1765128970021,3.16,135.29,135.18,65.76]
[1765128970220,3.16,135.29,135.14,65.76]
[1765128970221,3.16,135.27,135.14,65.76]
[1765128970420,3.21121219,135.22,135.19,0.0553909]
[1765128970622,3.16,135.22,135.14,65.76]
[1765128970820,3.21336713,135.22,135.19,0.05257279]
[1765128973117,3.21336713,135.22,135.19,0.00257279]
[1765128973321,3.16,135.21,135.14,65.76]
[1765128974334,3.16,135.18,135.16,0.0550709]
[1765128976135,3.16,135.18,135.09,72.4415]
[1765128976439,3.16,135.18,135.1,110.2757]
[1765128977039,3.16,135.18,135.08,103.6312]
[1765128977228,3.21136089,135.14,135.12,0.0229911]
[1765128977534,3.2148549,135.14,135.12,0.0229911]
[1765128977937,3.2048549,135.14,135.12,0.0229911]
[1765128978134,3.15,135.1,135.0,6.6659]
[1765128978334,3.15,135.1,134.96,103.7217]
[1765128978335,3.15,135.07,134.96,103.7217]
[1765128978534,3.15,135.07,134.98,103.7104]
[1765128979035,0.05180398,135.04,134.98,103.7104]
[1765128979337,0.05180398,135.04,134.97,103.7118]
[1765128979338,0.05180398,135.04,135.0,103.6948]
[1765128979528,0.05180398,135.04,134.99,103.6974]
[1765128979731,3.20180398,135.04,134.97,103.7118]
[1765128980337,0.05180398,135.04,135.0,103.6935]
[1765128980531,0.05180398,135.04,135.01,6.6651]
[1765128980837,0.05180398,135.04,135.0,169.4535]
[1765128980838,3.20180398,135.04,135.0,65.76]
[1765128981138,3.20180398,135.04,134.95,169.4901]
[1765128981341,0.04844752,135.01,134.95,169.4901]
[1765128981641,3.19844752,135.01,134.93,6.6695]
[1765128981942,3.19844752,135.01,134.93,72.4295]
[1765128982237,3.19844752,135.01,134.93,65.76]
[1765128982442,3.19844752,135.01,134.88,103.7832]
[1765128982443,106.8614,134.98,134.86,103.7981]
[1765128982738,0.05260251,134.93,134.88,103.7871]
[1765128982943,0.0510823,134.92,134.88,6.6715]
[1765128983131,0.0510823,134.92,134.87,65.78]
[1765128983330,0.0510823,134.92,134.89,103.7762]
[1765128983636,0.0510823,134.92,134.9,110.4386]
[1765128984041,3.15,135.0,134.9,110.4386]
[1765128984241,3.15,135.0,134.88,65.8]
[1765128984640,106.8636,134.98,134.88,65.8]
[1765128984855,3.15,134.97,134.88,65.8]
[1765128985041,0.04983226,134.94,134.91,0.0510823]
[1765128985545,3.19983226,134.94,134.91,0.0510823]
[1765128985741,106.91,134.92,134.82,88.64]
[1765128985944,106.91,134.92,134.76,103.8753]
[1765128985945,3.15,134.89,134.8,65.88]
[1765128986446,103.76,134.92,134.8,65.88]
[1765128986745,0.04830215,134.87,134.8,178.93771022]
[1765128987145,0.04830215,134.87,134.8,185.61361022]
[1765128987538,0.04830215,134.87,134.81,103.8354]
[1765128987745,0.04830215,134.87,134.82,110.5084]
[1765128987948,6.669,134.95,134.83,113.03691022]
[1765128988152,113.5545,134.95,134.83,113.03691022]